fUST/lending_fUST_20250729
["ID","MTS","AMOUNT","RATE_DAILY","PERIOD"]
[375917900,1753783854779,-501.73872246,0.00019721,2]
[375917901,1753783854790,-503.85859838,0.00019721,2]
[375917902,1753783854800,-673.84412601,0.00019721,2]
[375917903,1753783854810,-506.97805857,0.00019721,2]
[375917904,1753783854819,-1000.0,0.00019721,2]
[375917905,1753783854831,-500.0,0.00019721,2]
[375917906,1753783854842,-151.0,0.00019721,2]
[375917907,1753783854851,-243.18241454,0.00019721,2]
[375917908,1753783854861,-500.0,0.00019721,2]
[375917909,1753783854872,-500.0,0.00019721,2]
[375917910,1753783854882,-271.76297711,0.00019721,2]
[375917911,1753783854892,-415.56299922,0.00019721,2]
[375917912,1753783854902,-151.0,0.00019721,2]
[375917913,1753783854912,-500.0,0.00019725,2]
[375917914,1753783854923,-500.0,0.00019725,2]
[375917915,1753783854933,-500.0,0.00019725,2]
[375917916,1753783854943,-528.04174083,0.00019725,2]
[375917917,1753783854954,-151.0,0.00019726,2]
[375917918,1753783854964,-290.54900114,0.00019726,2]
[375917919,1753783854974,-539.64785306,0.00019726,2]
[375917920,1753783854984,-460.0,0.00019726,2]
[375917921,1753783854997,-460.0,0.00019726,2]
[375917922,1753783855007,-460.0,0.00019726,2]
[375917923,1753783855017,-460.0,0.00019726,2]
[375917924,1753783855027,-460.0,0.00019726,2]
[375917925,1753783855038,-460.0,0.00019726,2]
[375917926,1753783855048,-460.0,0.00019726,2]
[375917927,1753783855058,-460.0,0.00019726,2]
[375917928,1753783855068,-460.0,0.00019726,2]
[375917929,1753783855078,-460.0,0.00019726,2]
[375917930,1753783855089,-237.04778176,0.00019726,2]
[375917931,1753783855099,-290.76614728,0.00019726,2]
[375917932,1753783855109,-460.0,0.00019726,2]
[375917933,1753783855119,-460.0,0.00019726,2]
[375917934,1753783855129,-460.0,0.00019726,2]
[375917935,1753783855139,-460.0,0.00019726,2]
[375917936,1753783855150,-460.0,0.00019726,2]
[375917937,1753783855160,-460.0,0.00019726,2]
[375917938,1753783855171,-460.0,0.00019726,2]
[375917939,1753783855181,-460.0,0.00019726,2]
[375917940,1753783855191,-460.0,0.00019726,2]
[375917941,1753783855201,-460.0,0.00019726,2]
[375917942,1753783855211,-460.0,0.00019726,2]
[375917943,1753783855221,-460.0,0.00019726,2]
[375917944,1753783855231,-460.0,0.00019726,2]
[375917945,1753783855241,-460.0,0.00019726,2]
[375917946,1753783855252,-306.49384973,0.00019726,2]
[375917947,1753783855262,-463.64834083,0.00019726,2]
[375917948,1753783855272,-460.0,0.00019726,2]
[375917949,1753783855283,-460.0,0.00019726,2]
[375917950,1753783855293,-460.0,0.00019726,2]
[375917951,1753783855306,-460.0,0.00019726,2]
[375917952,1753783855325,-460.0,0.00019726,2]
[375917953,1753783855337,-187.48065134,0.00019726,2]
[375917954,1753783855346,-460.0,0.00019726,2]
[375917955,1753783855356,-460.0,0.00019726,2]
[375917956,1753783855365,-460.0,0.00019726,2]
[375917957,1753783855375,-460.0,0.00019726,2]
[375917958,1753783855384,-460.0,0.00019726,2]
[375917959,1753783855394,-460.0,0.00019726,2]
[375917960,1753783855403,-460.0,0.00019726,2]
[375917961,1753783855412,-460.0,0.00019726,2]
[375917962,1753783855422,-460.0,0.00019726,2]
[375917963,1753783855431,-460.0,0.00019726,2]
[375917964,1753783855440,-500.0,0.00019726,2]
[375917965,1753783855450,-460.0,0.00019726,2]
[375917966,1753783855459,-602.47928604,0.00019726,2]
[375917967,1753783855468,-460.0,0.00019726,2]
[375917968,1753783855484,-460.0,0.00019726,2]
[375917969,1753783855501,-460.0,0.00019726,2]
[375917970,1753783855511,-460.0,0.00019726,2]
[375917971,1753783855521,-460.0,0.00019726,2]
[375917972,1753783855530,-460.0,0.00019726,2]
[375917973,1753783855539,-460.0,0.00019726,2]
[375917974,1753783855548,-460.0,0.00019726,2]
[375917975,1753783855558,-460.0,0.00019726,2]
[375917976,1753783855567,-460.0,0.00019726,2]
[375917977,1753783855576,-460.0,0.00019726,2]
[375917978,1753783855586,-460.0,0.00019726,2]
[375917979,1753783855595,-460.0,0.00019726,2]
[375917980,1753783855604,-460.0,0.00019726,2]
[375917981,1753783855613,-460.0,0.00019726,2]
[375917982,1753783855622,-460.0,0.00019726,2]
[375917983,1753783855631,-460.0,0.00019726,2]
[375917984,1753783855640,-460.0,0.00019726,2]
[375917985,1753783855649,-460.0,0.00019726,2]
[375917986,1753783855659,-460.0,0.00019726,2]
[375917987,1753783855668,-375.11701123,0.00019726,2]
[375917988,1753783855677,-460.0,0.00019726,2]
[375917989,1753783855687,-460.0,0.00019726,2]
[375917990,1753783855696,-151.0,0.00019726,2]
[375917991,1753783855705,-174.4588525,0.00019726,2]
[375917992,1753783855715,-510.52277868,0.00019726,2]
[375917993,1753783855724,-151.0,0.00019726,2]
[375917994,1753783855733,-460.0,0.00019726,2]
[375917995,1753783855747,-460.0,0.00019726,2]
[375917996,1753783855756,-630.91,0.00019726,2]
[375917997,1753783855766,-460.0,0.00019726,2]
[375917998,1753783855775,-460.0,0.00019726,2]
[375917999,1753783855785,-460.0,0.00019726,2]
[375918000,1753783855795,-374.30024023,0.00019726,2]
[375918001,1753783855804,-460.0,0.00019726,2]
[375918002,1753783855813,-460.0,0.00019726,2]
[375918003,1753783855894,-460.0,0.00019726,2]
[375918004,1753783855905,-460.0,0.00019726,2]
[375918005,1753783855914,-247.5852415,0.00019726,2]
[375918006,1753783855923,-460.0,0.00019726,2]
[375918007,1753783855932,-460.0,0.00019726,2]
[375918008,1753783855941,-384.68769099,0.00019726,2]
[375918009,1753783855950,-460.0,0.00019726,2]
[375918010,1753783855959,-460.0,0.00019726,2]
[375918011,1753783855968,-460.0,0.00019726,2]
[375918012,1753783855978,-460.0,0.00019726,2]
[375918013,1753783855987,-460.0,0.00019726,2]
[375918014,1753783855998,-460.0,0.00019726,2]
[375918015,1753783856008,-460.0,0.00019726,2]
[375918016,1753783856018,-460.0,0.00019726,2]
[375918017,1753783856027,-460.0,0.00019726,2]
[375918018,1753783856037,-633.19,0.00019726,2]
[375918019,1753783856046,-485.1269495,0.00019726,2]
[375918020,1753783856056,-460.0,0.00019726,2]
[375918021,1753783856066,-155.61790183,0.00019726,2]
[375918022,1753783856075,-460.0,0.00019726,2]
[375918023,1753783856084,-460.0,0.00019726,2]
[375918024,1753783856094,-460.0,0.00019726,2]
[375918025,1753783856103,-460.0,0.00019726,2]
[375918026,1753783856113,-702.77,0.00019726,2]
[375918027,1753783856122,-460.0,0.00019726,2]
[375918028,1753783856132,-460.0,0.00019726,2]
[375918029,1753783856142,-460.0,0.00019726,2]
[375918030,1753783856151,-460.0,0.00019726,2]
[375918031,1753783856160,-460.0,0.00019726,2]
[375918032,1753783856170,-460.0,0.00019726,2]
[375918033,1753783856179,-460.0,0.00019726,2]
[375918034,1753783856189,-1242.18,0.00019726,2]
[375918035,1753783856199,-460.0,0.00019726,2]
[375918036,1753783856208,-460.0,0.00019726,2]
[375918037,1753783856218,-460.0,0.00019726,2]
[375918038,1753783856227,-460.0,0.00019726,2]
[375918039,1753783856236,-460.0,0.00019726,2]
[375918040,1753783856247,-506.28260716,0.00019726,2]
[375918041,1753783856256,-460.0,0.00019726,2]
[375918042,1753783856266,-460.0,0.00019726,2]
[375918043,1753783856276,-460.0,0.00019726,2]
[375918044,1753783856285,-726.44,0.00019726,2]
[375918045,1753783856294,-460.0,0.00019726,2]
[375918046,1753783856304,-460.0,0.00019726,2]
[375918047,1753783856313,-460.0,0.00019726,2]
[375918048,1753783856323,-460.0,0.00019726,2]
[375918049,1753783856332,-575.02,0.00019726,2]
[375918050,1753783856341,-462.60650812,0.00019726,2]
[375918051,1753783856350,-460.0,0.00019726,2]
[375918052,1753783856360,-460.0,0.00019726,2]
[375918053,1753783856369,-460.0,0.00019726,2]
[375918054,1753783856378,-460.0,0.00019726,2]
[375918055,1753783856388,-460.0,0.00019726,2]
[375918056,1753783856397,-460.0,0.00019726,2]
[375918057,1753783856406,-460.0,0.00019726,2]
[375918058,1753783856415,-460.0,0.00019726,2]
[375918059,1753783856425,-686.44,0.00019726,2]
[375918060,1753783856434,-460.0,0.00019726,2]
[375918061,1753783856443,-460.0,0.00019726,2]
[375918062,1753783856453,-460.0,0.00019726,2]
[375918063,1753783856462,-460.0,0.00019726,2]
[375918064,1753783856472,-609.24,0.00019726,2]
[375918065,1753783856481,-460.0,0.00019726,2]
[375918066,1753783856490,-544.90644396,0.00019726,2]
[375918067,1753783856500,-460.0,0.00019726,2]
[375918068,1753783856509,-460.0,0.00019726,2]
[375918069,1753783856518,-460.0,0.00019726,2]
[375918070,1753783856528,-475.28355962,0.00019726,2]
[375918071,1753783856537,-460.0,0.00019726,2]
[375918072,1753783856546,-379.79918244,0.00019726,2]
[375918073,1753783856555,-460.0,0.00019726,2]
[375918074,1753783856565,-460.0,0.00019726,2]
[375918075,1753783856574,-1422.1,0.00019726,2]
[375918076,1753783856583,-460.0,0.00019726,2]
[375918077,1753783856594,-460.0,0.00019726,2]
[375918078,1753783856603,-460.0,0.00019726,2]
[375918079,1753783856612,-460.0,0.00019726,2]
[375918080,1753783856622,-463.93609521,0.00019726,2]
[375918081,1753783856631,-460.0,0.00019726,2]
[375918082,1753783856640,-503.21,0.00019726,2]
[375918083,1753783856650,-460.0,0.00019726,2]
[375918084,1753783856659,-807.45,0.00019726,2]
[375918085,1753783856668,-460.0,0.00019726,2]
[375918086,1753783856678,-460.0,0.00019726,2]
[375918087,1753783856688,-460.0,0.00019726,2]
[375918088,1753783856697,-467.11137949,0.00019726,2]
[375918089,1753783856706,-460.0,0.00019726,2]
[375918090,1753783856716,-460.0,0.00019726,2]
[375918091,1753783856726,-460.0,0.00019726,2]
[375918092,1753783856735,-460.0,0.00019726,2]
[375918093,1753783856750,-460.0,0.00019726,2]
[375918094,1753783856760,-615.06,0.00019726,2]
[375918095,1753783856769,-460.0,0.00019726,2]
[375918096,1753783856779,-460.0,0.00019726,2]
[375918097,1753783856788,-460.0,0.00019726,2]
[375918098,1753783856798,-460.0,0.00019726,2]
[375918099,1753783856808,-464.54809302,0.00019726,2]
[375918100,1753783856817,-461.94376967,0.00019726,2]
[375918101,1753783856827,-460.0,0.00019726,2]
[375918102,1753783856837,-460.0,0.00019726,2]
[375918103,1753783856847,-460.0,0.00019726,2]
[375918104,1753783856856,-460.0,0.00019726,2]
[375918105,1753783856866,-460.0,0.00019726,2]
[375918106,1753783856875,-460.0,0.00019726,2]
[375918107,1753783856885,-340.45669823,0.00019726,2]
[375918108,1753783856895,-2896.6,0.00019726,2]
[375918109,1753783856904,-460.0,0.00019726,2]
[375918110,1753783856914,-460.0,0.00019726,2]
[375918111,1753783856923,-460.0,0.00019726,2]
[375918112,1753783856932,-460.0,0.00019726,2]
[375918113,1753783856942,-699.26,0.00019726,2]
[375918114,1753783856951,-460.0,0.00019726,2]
[375918115,1753783856961,-460.0,0.00019726,2]
[375918116,1753783856970,-151.674928,0.00019726,2]
[375918117,1753783856979,-460.0,0.00019726,2]
[375918118,1753783856988,-460.0,0.00019726,2]
[375918119,1753783856999,-460.0,0.00019726,2]
[375918120,1753783857009,-630.99,0.00019726,2]
[375918121,1753783857019,-460.0,0.00019726,2]
[375918122,1753783857029,-460.0,0.00019726,2]
[375918123,1753783857038,-460.0,0.00019726,2]
[375918124,1753783857048,-474.9,0.00019726,2]
[375918125,1753783857058,-460.0,0.00019726,2]
[375918126,1753783857068,-460.0,0.00019726,2]
[375918127,1753783857079,-460.0,0.00019726,2]
[375918128,1753783857090,-461.65963896,0.00019726,2]
[375918129,1753783857100,-746.43,0.00019726,2]
[375918130,1753783857110,-480.00649225,0.00019726,2]
[375918131,1753783857121,-575.890876,0.00019726,2]
[375918132,1753783857132,-460.0,0.00019726,2]
[375918133,1753783857142,-460.0,0.00019726,2]
[375918134,1753783857226,-469.22369722,0.00019726,2]
[375918135,1753783857236,-575.890876,0.00019726,2]
[375918136,1753783857248,-449.3171968,0.00019726,2]
[375918137,1753783857257,-460.0,0.00019726,2]
[375918138,1753783857267,-460.0,0.00019726,2]
[375918139,1753783857276,-460.0,0.00019726,2]
[375918140,1753783857285,-480.13,0.00019726,2]
[375918141,1753783857295,-151.0,0.00019726,2]
[375918142,1753783857304,-460.0,0.00019726,2]
[375918143,1753783857314,-460.0,0.00019726,2]
[375918144,1753783857323,-460.0,0.00019726,2]
[375918145,1753783857333,-460.0,0.00019726,2]
[375918146,1753783857342,-460.0,0.00019726,2]
[375918147,1753783857352,-460.0,0.00019726,2]
[375918148,1753783857361,-460.0,0.00019726,2]
[375918149,1753783857371,-460.0,0.00019726,2]
[375918150,1753783857381,-460.0,0.00019726,2]
[375918151,1753783857390,-460.0,0.00019726,2]
[375918152,1753783857399,-463.67206815,0.00019726,2]
[375918153,1753783857409,-460.0,0.00019726,2]
[375918154,1753783857418,-460.0,0.00019726,2]
[375918155,1753783857428,-460.0,0.00019726,2]
[375918156,1753783857438,-460.0,0.00019726,2]
[375918157,1753783857447,-460.0,0.00019726,2]
[375918158,1753783857457,-460.0,0.00019726,2]
[375918159,1753783857466,-533.45,0.00019726,2]
[375918160,1753783857476,-460.0,0.00019726,2]
[375918161,1753783857485,-460.0,0.00019726,2]
[375918162,1753783857495,-612.42,0.00019726,2]
[375918163,1753783857505,-460.0,0.00019726,2]
[375918164,1753783857514,-460.0,0.00019726,2]
[375918165,1753783857523,-460.0,0.00019726,2]
[375918166,1753783857533,-460.0,0.00019726,2]
[375918167,1753783857543,-1374.84,0.00019726,2]
[375918168,1753783857552,-460.0,0.00019726,2]
[375918169,1753783857561,-460.0,0.00019726,2]
[375918170,1753783857570,-460.0,0.00019726,2]
[375918171,1753783857580,-460.0,0.00019726,2]
[375918172,1753783857589,-460.0,0.00019726,2]
[375918173,1753783857599,-460.0,0.00019726,2]
[375918174,1753783857608,-460.0,0.00019726,2]
[375918175,1753783857617,-460.0,0.00019726,2]
[375918176,1753783857627,-1048.05,0.00019726,2]
[375918177,1753783857636,-3098.65,0.00019726,2]
[375918178,1753783857646,-460.0,0.00019726,2]
[375918179,1753783857656,-460.0,0.00019726,2]
[375918180,1753783857666,-460.0,0.00019726,2]
[375918181,1753783857675,-460.0,0.00019726,2]
[375918182,1753783857685,-460.0,0.00019726,2]
[375918183,1753783857694,-460.0,0.00019726,2]
[375918184,1753783857704,-460.0,0.00019726,2]
[375918185,1753783857713,-460.0,0.00019726,2]
[375918186,1753783857723,-152.910834,0.00019726,2]
[375918187,1753783857732,-9691.1,0.00019726,2]
[375918188,1753783857742,-460.0,0.00019726,2]
[375918189,1753783857757,-460.0,0.00019726,2]
[375918190,1753783857766,-460.0,0.00019726,2]
[375918191,1753783857776,-460.0,0.00019726,2]
[375918192,1753783857785,-629.2,0.00019726,2]
[375918193,1753783857795,-460.0,0.00019726,2]
[375918194,1753783857804,-8482.62,0.00019726,2]
[375918195,1753783857813,-460.0,0.00019726,2]
[375918196,1753783857823,-549.29,0.00019726,2]
[375918197,1753783857832,-151.0,0.00019726,2]
[375918198,1753783857841,-460.0,0.00019726,2]
[375918199,1753783857851,-460.0,0.00019726,2]
[375918200,1753783857860,-460.0,0.00019726,2]
[375918201,1753783857870,-1078.37,0.00019726,2]
[375918202,1753783857879,-449.39573454,0.00019726,2]
[375918203,1753783857888,-460.0,0.00019726,2]
[375918204,1753783857897,-460.0,0.00019726,2]
[375918205,1753783857906,-460.0,0.00019726,2]
[375918206,1753783857916,-460.0,0.00019726,2]
[375918207,1753783857925,-460.0,0.00019726,2]
[375918208,1753783857935,-636.63,0.00019726,2]
[375918209,1753783857944,-460.0,0.00019726,2]
[375918210,1753783857953,-460.0,0.00019726,2]
[375918211,1753783857962,-460.0,0.00019726,2]
[375918212,1753783857971,-460.0,0.00019726,2]
[375918213,1753783857980,-460.0,0.00019726,2]
[375918214,1753783857989,-460.0,0.00019726,2]
[375918215,1753783858000,-460.0,0.00019726,2]
[375918216,1753783858009,-460.0,0.00019726,2]
[375918217,1753783858018,-460.0,0.00019726,2]
[375918218,1753783858027,-1309.75,0.00019726,2]
[375918219,1753783858037,-460.0,0.00019726,2]
[375918220,1753783858046,-460.0,0.00019726,2]
[375918221,1753783858055,-460.0,0.00019726,2]
[375918222,1753783858064,-460.0,0.00019726,2]
[375918223,1753783858073,-460.0,0.00019726,2]
[375918224,1753783858082,-460.0,0.00019726,2]
[375918225,1753783858091,-3451.62,0.00019726,2]
[375918226,1753783858100,-4669.88,0.00019726,2]
[375918227,1753783858110,-460.0,0.00019726,2]
[375918228,1753783858119,-460.0,0.00019726,2]
[375918229,1753783858128,-460.0,0.00019726,2]
[375918230,1753783858137,-460.0,0.00019726,2]
[375918231,1753783858146,-151.0,0.00019726,2]
[375918232,1753783858155,-460.0,0.00019726,2]
[375918233,1753783858165,-460.0,0.00019726,2]
[375918234,1753783858174,-460.0,0.00019726,2]
[375918235,1753783858183,-2598.43,0.00019726,2]
[375918236,1753783858192,-460.0,0.00019726,2]
[375918237,1753783858202,-460.0,0.00019726,2]
[375918238,1753783858211,-721.04,0.00019726,2]
[375918239,1753783858220,-460.0,0.00019726,2]
[375918240,1753783858229,-460.0,0.00019726,2]
[375918241,1753783858239,-460.0,0.00019726,2]
[375918242,1753783858249,-460.0,0.00019726,2]
[375918243,1753783858258,-460.0,0.00019726,2]
[375918244,1753783858268,-460.0,0.00019726,2]
[375918245,1753783858277,-460.0,0.00019726,2]
[375918246,1753783858286,-460.0,0.00019726,2]
[375918247,1753783858296,-460.0,0.00019726,2]
[375918248,1753783858305,-780.2,0.00019726,2]
[375918249,1753783858314,-2181.94,0.00019726,2]
[375918250,1753783858324,-460.0,0.00019726,2]
[375918251,1753783858333,-460.0,0.00019726,2]
[375918252,1753783858342,-2840.9,0.00019726,2]
[375918253,1753783858351,-460.0,0.00019726,2]
[375918254,1753783858428,-460.0,0.00019726,2]
[375918255,1753783858438,-811.38,0.00019726,2]
[375918256,1753783858447,-939.56,0.00019726,2]
[375918257,1753783858455,-460.0,0.00019726,2]
[375918258,1753783858464,-496.39,0.00019726,2]
[375918259,1753783858473,-1185.45,0.00019726,2]
[375918260,1753783858484,-460.0,0.00019726,2]
[375918261,1753783858494,-460.0,0.00019726,2]
[375918262,1753783858503,-516.00097341,0.00019726,2]
[375918263,1753783858512,-527.57354801,0.00019726,2]
[375918264,1753783858521,-460.0,0.00019726,2]
[375918265,1753783858531,-460.0,0.00019726,2]
[375918266,1753783858540,-475.53,0.00019726,2]
[375918267,1753783858549,-1580.91,0.00019726,2]
[375918268,1753783858559,-460.0,0.00019726,2]
[375918269,1753783858568,-838.44,0.00019726,2]
[375918270,1753783858577,-460.0,0.00019726,2]
[375918271,1753783858587,-460.0,0.00019726,2]
[375918272,1753783858597,-460.0,0.00019726,2]
[375918273,1753783858606,-460.0,0.00019726,2]
[375918274,1753783858616,-460.0,0.00019726,2]
[375918275,1753783858626,-151.0,0.00019726,2]
[375918276,1753783858635,-460.0,0.00019726,2]
[375918277,1753783858644,-463.14875079,0.00019726,2]
[375918278,1753783858654,-460.0,0.00019726,2]
[375918279,1753783858663,-460.0,0.00019726,2]
[375918280,1753783858673,-460.0,0.00019726,2]
[375918281,1753783858682,-575.97609992,0.00019726,2]
[375918282,1753783858692,-460.0,0.00019726,2]
[375918283,1753783858701,-151.0,0.00019726,2]
[375918284,1753783858711,-919.13,0.00019726,2]
[375918285,1753783858720,-151.0,0.00019726,2]
[375918286,1753783858730,-460.0,0.00019726,2]
[375918287,1753783858739,-460.0,0.00019726,2]
[375918288,1753783858752,-460.0,0.00019726,2]
[375918289,1753783858761,-4042.77,0.00019726,2]
[375918290,1753783858770,-297.14767072,0.00019726,2]
[375918291,1753783858779,-154.68968948,0.00019726,2]
[375918292,1753783858790,-480.07,0.00019726,2]
[375918293,1753783858800,-460.0,0.00019726,2]
[375918294,1753783858809,-460.0,0.00019726,2]
[375918295,1753783858819,-306.76883906,0.00019726,2]
[375918296,1753783858831,-460.0,0.00019726,2]
[375918297,1753783858841,-561.44,0.00019726,2]
[375918298,1753783858850,-460.0,0.00019726,2]
[375918299,1753783858860,-1387.53,0.00019726,2]
[375918300,1753783858870,-460.0,0.00019726,2]
[375918301,1753783858879,-460.0,0.00019726,2]
[375918302,1753783858889,-462.68572116,0.00019726,2]
[375918303,1753783858898,-524.76,0.00019726,2]
[375918304,1753783858908,-460.0,0.00019726,2]
[375918305,1753783858919,-494.38,0.00019726,2]
[375918306,1753783858928,-460.0,0.00019726,2]
[375918307,1753783858937,-460.0,0.00019726,2]
[375918308,1753783858946,-460.0,0.00019726,2]
[375918309,1753783858965,-708.15,0.00019726,2]
[375918310,1753783858981,-1167.89,0.00019726,2]
[375918311,1753783859000,-460.0,0.00019726,2]
[375918312,1753783859019,-460.0,0.00019726,2]
[375918313,1753783859037,-460.0,0.00019726,2]
[375918314,1753783859053,-460.0,0.00019726,2]
[375918315,1753783859072,-460.0,0.00019726,2]
[375918316,1753783859086,-336.84402193,0.00019726,2]
[375918317,1753783859101,-264.259949,0.00019726,2]
[375918318,1753783859121,-460.0,0.00019726,2]
[375918319,1753783859139,-3585.74,0.00019726,2]
[375918320,1753783859152,-2682.74,0.00019726,2]
[375918321,1753783859169,-460.0,0.00019726,2]
[375918322,1753783859184,-264.259949,0.00019726,2]
[375918323,1753783859200,-460.0,0.00019726,2]
[375918324,1753783859215,-460.0,0.00019726,2]
[375918325,1753783859228,-749.01,0.00019726,2]
[375918326,1753783859242,-210.84374368,0.00019726,2]
[375918327,1753783859257,-460.0,0.00019726,2]
[375918328,1753783859272,-460.0,0.00019726,2]
[375918329,1753783859287,-460.0,0.00019726,2]
[375918330,1753783859300,-460.0,0.00019726,2]
[375918331,1753783859315,-3637.2,0.00019726,2]
[375918332,1753783859330,-151.0,0.00019726,2]
[375918333,1753783859345,-460.0,0.00019726,2]
[375918334,1753783859359,-2891.35,0.00019726,2]
[375918335,1753783859373,-460.0,0.00019726,2]
[375918336,1753783859387,-460.0,0.00019726,2]
[375918337,1753783859402,-460.0,0.00019726,2]
[375918338,1753783859416,-460.0,0.00019726,2]
[375918339,1753783859430,-460.0,0.00019726,2]
[375918340,1753783859443,-460.0,0.00019726,2]
[375918341,1753783859457,-460.0,0.00019726,2]
[375918342,1753783859471,-970.09,0.00019726,2]
[375918343,1753783859485,-460.0,0.00019726,2]
[375918344,1753783859499,-460.0,0.00019726,2]
[375918345,1753783859514,-461.65277964,0.00019726,2]
[375918346,1753783859528,-502.49,0.00019726,2]
[375918347,1753783859543,-460.0,0.00019726,2]
[375918348,1753783859558,-461.67551966,0.00019726,2]
[375918349,1753783859573,-207.020219,0.00019726,2]
[375918350,1753783859588,-460.0,0.00019726,2]
[375918351,1753783859602,-460.0,0.00019726,2]
[375918352,1753783859616,-460.0,0.00019726,2]
[375918353,1753783859630,-460.0,0.00019726,2]
[375918354,1753783859644,-774.25,0.00019726,2]
[375918355,1753783859657,-2479.4,0.00019726,2]
[375918356,1753783859671,-1131.72,0.00019726,2]
[375918357,1753783859686,-460.0,0.00019726,2]
[375918358,1753783859700,-460.0,0.00019726,2]
[375918359,1753783859713,-460.0,0.00019726,2]
[375918360,1753783859727,-460.0,0.00019726,2]
[375918361,1753783859740,-1333.14,0.00019726,2]
[375918362,1753783859759,-460.0,0.00019726,2]
[375918363,1753783859773,-460.0,0.00019726,2]
[375918364,1753783859786,-834.95,0.00019726,2]
[375918365,1753783859894,-460.0,0.00019726,2]
[375918366,1753783859904,-685.3,0.00019726,2]
[375918367,1753783859913,-460.0,0.00019726,2]
[375918368,1753783859923,-460.0,0.00019726,2]
[375918369,1753783859932,-460.0,0.00019726,2]
[375918370,1753783859942,-460.0,0.00019726,2]
[375918371,1753783859951,-460.0,0.00019726,2]
[375918372,1753783859960,-460.0,0.00019726,2]
[375918373,1753783859971,-1063.74,0.00019726,2]
[375918374,1753783859981,-1320.39,0.00019726,2]
[375918375,1753783859990,-810.23382741,0.00019728,2]
[375918376,1753783860001,-642.0,0.00019736,2]
[375918377,1753783860010,-500.0,0.0001977,15]
[375918378,1753783860020,-154.07384469,0.00019773,2]
[375918379,1753783860029,-500.0,0.00019773,2]
[375918380,1753783860039,-500.36574572,0.00019773,2]
[375918381,1753783860048,-500.0,0.00019773,2]
[375918382,1753783860058,-232.80277878,0.00019773,2]
[375918383,1753783860067,-500.0,0.00019773,2]
[375918384,1753783860077,-500.0,0.00019773,2]
[375918385,1753783860087,-500.0,0.00019773,2]
[375918386,1753783860096,-500.0,0.00019773,2]
[375918387,1753783860105,-500.0,0.000198,2]
[375918388,1753783860115,-642.0,0.00019802,2]
[375918389,1753783860124,-642.0,0.00019836,2]
[375918390,1753783860134,-454.09136318,0.00019845,4]
[375918391,1753783860143,-810.23382741,0.00019866,2]
[375918392,1753783860153,-642.0,0.00019878,2]
[375918393,1753783860163,-325.0,0.00019887,2]
[375918394,1753783860172,-441.171558,0.0001993,2]
[375918395,1753783860181,-330.2,0.00019938,3]
[375918396,1753783860191,-152.9570777,0.00019995,2]
[375918397,1753783860201,-500.0,0.00019995,2]
[375918398,1753783860211,-436.43529069,0.00019995,2]
[375918399,1753783860220,-151.0,0.00019995,2]